[Event "FISCA Open 2022"]
[Site "Cap Aurora"]
[Date "2022.06.28"]
[Round "8.2"]
[White "Trifoi, Mihaela-Ioana"]
[Black "Ardeleanu, Alin"]
[Result "1/2-1/2"]
[ECO "B31"]
[WhiteElo "1949"]
[BlackElo "2290"]
[Annotator "TA"]
[PlyCount "110"]
[EventDate "2022.06.22"]
[EventType "swiss"]
[EventCountry "ROU"]
[SourceTitle "playchess.com"]
[Source "ChessBase"]
[SourceQuality "1"]
[TimeControl "5400+30"]

{[%evp 18,110,0,0,0,-49,-52,-30,-29,-40,-19,-13,0,-22,8,2,35,14,10,9,5,14,20,0,0,0,0,0,60,0,18,0,5,-49,-46,-72,-76,-64,-42,-52,0,0,0,-6,-6,-7,0,-4,0,0,0,0,0,-56,0,-38,0,-30,-33,-57,-57,-53,0,0,0,-2,0,0,0,0,0,0,0,0,0,-14,0,0,0,0,0,0,5,0,10,10,10,10,8,0,20,23,224,212,435]} 1. e4 {[%emt 0:04:05]} g6 {[%emt 0:00:17]} 2. d4 {[%emt 0:00:10]} Bg7 {[%emt 1:31:13]} 3. Nf3 {[%emt 0:00:13]} d6 {[%emt 0:00:00]} 4. Bd3 {[%emt 0:02:47]} Nf6 {[%emt 0:00:00]} 5. c3 {[%emt 0:02:54]} O-O {[%emt 0:00:00]} 6. O-O {[%emt 0:00:12]} c5 {[%emt 0:00:00]} 7. Re1 {[%emt 0:04:34]} Nc6 {[%emt 0:00:00]} 8. h3 {[%emt 0:10:19]} Nd7 {[%emt 0:00:00]} 9. Bb5 {[%emt 0:15:10]} Qb6 {[%emt 0:00:00]} 10. Bxc6 {[%emt 0:04:30]} bxc6 {[%emt 0:00:00] B31: Sicilian: 2...Nc6 3 Bb5 g6.} 11. Na3 {[%emt 0:02:32]} (11. b3 $11) 11... cxd4 $15 {[%emt 0:00:00]} 12. cxd4 {[%emt 0:02:52] [#]} c5 $146 {[%emt 0:00:00][%cal Rc5d4] Black has an edge.} ({Predecessor:} 12... Ba6 13. b3 c5 14. Bb2 cxd4 15. Bxd4 Bxd4 16. Qxd4 Rfc8 17. Rec1 Qxd4 18. Nxd4 Nc5 {0-1 (60) Jeitz,C (2251)-Frindt,K (2151) Kallithea 2008}) 13. d5 {[%emt 0:04:32]} Ba6 {[%emt 0:00:00]} ({Don't play} 13... Bxb2 14. Nc4 Bxa1 15. Nxb6 axb6 16. Bh6 $14) 14. Rb1 {[%emt 0:01:40]} Rab8 {[%emt 0:00:00]} 15. Nc2 {[%emt 0:04:53]} Nf6 {[%emt 0:00:00]} 16. b4 {[%emt 0:04:10]} Qc7 {[%emt 0:00:00]} 17. Bf4 {[%emt 0:05:31]} Nh5 {[%emt 0:00:00]} 18. Be3 {[%emt 0:00:50]} Bc3 {[%emt 0:00:00] This bishop pair is nice.} 19. Bd2 {[%emt 0:00:07]} cxb4 {[%emt 0:00:00]} 20. Nxb4 {[%emt 0:01:16]} (20. Nfd4 {looks sharper.} Bb7 21. Rb3 Nf6 22. Nb5) 20... Rxb4 {[%emt 0:00:00]} 21. Rxb4 {[%emt 0:00:15]} Bxb4 {[%emt 0:00:00]} 22. Bxb4 {[%emt 0:27:58]} Qc4 {[%emt 0:01:04]} (22... Nf4 $1 $11) 23. a3 {[%emt 0:00:00]} Nf4 {[%emt 0:07:17]} 24. Re3 {[%emt 0:00:00]} Rc8 {[%emt 0:01:13]} 25. Nd2 {[%emt 0:00:00]} ({Better is} 25. Nd4 $11) 25... Qc1 {[%emt 0:00:48]} 26. Re1 {[%emt 0:00:00][%cal Be3e1,Be1d1,Bd1d2][%mdl 32]} Qxd1 {[%emt 0:01:04]} 27. Rxd1 {[%emt 0:02:30]} Nd3 {[%emt 0:00:24]} 28. Ba5 {[%emt 0:00:00]} Rc5 {[%emt 0:00:33]} (28... f5 $15) 29. Nb3 $11 {[%emt 0:00:00]} Rc2 {[%emt 0:00:10]} 30. Rd2 {[%emt 0:01:30]} Rc8 31. Rd1 {[%emt 0:00:00]} Kf8 {[%emt 0:01:04]} 32. Nd4 {[%emt 0:00:00]} Ne5 {[%emt 0:00:39]} 33. f3 {[%emt 0:00:00]} Rc4 {[%emt 0:00:36]} 34. Bd2 {[%emt 0:00:00]} Ke8 {[%emt 0:00:18]} 35. Nb3 {[%emt 0:00:00]} (35. Bf4 $11) 35... Rc2 {[%emt 0:00:41]} (35... Ra4 $15) 36. Rb1 {[%emt 0:03:00]} Bc4 {[%emt 0:00:30] [#] Threatens to win with ...Bxb3.} 37. Ba5 {[%emt 0:00:00]} Bd3 {[%emt 0:00:34][%cal Oc2g2]} 38. Rc1 {[%emt 0:00:00]} Rxc1+ {[%emt 0:00:09]} 39. Nxc1 $15 {[%emt 0:00:00][%mdl 4096] Endgame KBN-KBN} Bc4 {[%emt 0:00:20]} (39... Bc2 $15) 40. Kf2 $11 {[%emt 0:00:00]} f5 {[%emt 0:00:15]} 41. Bd2 {[%emt 0:00:21]} Nd7 {[%emt 0:00:30]} 42. Ne2 {[%emt 0:00:30]} Nc5 {[%emt 0:00:30]} 43. Nc3 {[%emt 0:00:30]} a6 {[%emt 0:00:30]} 44. g3 {[%emt 0:00:30][%cal Bg2g3,Bg3g4,Bg4g5][%mdl 32]} Kf7 {[%emt 0:00:30]} 45. Ke3 {[%emt 0:00:30]} Nb3 {[%emt 0:00:30]} 46. Be1 {[%emt 0:00:30]} fxe4 {[%emt 0:00:30]} 47. fxe4 {[%emt 0:00:30]} Bf1 {[%emt 0:00:30]} 48. h4 {[%emt 0:00:30]} Nc5 {[%emt 0:00:30]} 49. g4 {[%emt 0:00:30]} Bc4 {[%emt 0:00:30]} 50. Bg3 {[%emt 0:00:30]} Bf1 {[%emt 0:00:30]} 51. e5 {[%emt 0:00:30]} dxe5 {[%emt 0:00:30]} 52. Bxe5 {[%emt 0:00:30]} Nd7 {[%emt 0:00:30]} 53. Bg3 {[%emt 0:00:30]} Nf6 {[%emt 0:00:30]} 54. g5 {[%emt 0:00:30]} Nh5 {[%emt 0:00:30] [#]} (54... Ne8 $11) 55. Be5 $18 {[%emt 0:00:30]} Nf6 $2 {[%emt 0:01:51][%mdl 32768] Weighted Error Value: White=0.12 (very precise) /Black=0.21 (precise) . An unexpected result.} (55... Ng7) 1/2-1/2

[Event "FISCA Open 2022"]
[Site "Cap Aurora"]
[Date "2022.06.28"]
[Round "8.3"]
[White "Prisacaru, Stefan-Emilian"]
[Black "Coca, Cristi-Iulian"]
[Result "1/2-1/2"]
[ECO "E91"]
[WhiteElo "1937"]
[BlackElo "2174"]
[Annotator "RC"]
[PlyCount "96"]
[EventDate "2022.06.22"]
[EventType "swiss"]
[EventCountry "ROU"]
[SourceTitle "playchess.com"]
[Source "ChessBase"]
[SourceQuality "1"]
[TimeControl "5400+30"]

1. d4 {[%emt 0:00:02]} Nf6 {[%emt 0:00:06]} 2. c4 {[%emt 0:00:04]} g6 {[%emt 0:00:04]} 3. Nc3 {[%emt 0:00:05]} Bg7 {[%emt 0:00:04]} 4. e4 {[%emt 0:00:10]} d6 {[%emt 0:00:03]} 5. Nf3 {[%emt 0:00:09]} O-O {[%emt 0:00:06]} 6. Be2 {[%emt 0:00:06]} c5 {[%emt 0:10:29]} 7. d5 {[%emt 0:01:51]} e6 {[%emt 0:05:13]} 8. O-O {[%emt 0:00:54]} exd5 {[%emt 0:00:10]} 9. exd5 {[%emt 0:00:06]} Re8 {[%emt 0:09:37]} 10. Re1 {[%emt 0:03:08]} h6 {[%emt 0:12:44]} 11. h3 {[%emt 0:04:23]} Bf5 {[%emt 0:11:29]} 12. Bd3 {[%emt 0:09:35]} Bxd3 {[%emt 0:05:36]} 13. Rxe8+ {[%emt 0:00:27]} Nxe8 {[%emt 0:00:23]} 14. Qxd3 {[%emt 0:00:05]} Nd7 {[%emt 0:01:49]} 15. Bf4 {[%emt 0:04:37]} f5 {[%emt 0:08:38]} 16. Qe3 {[%emt 0:11:28]} Kh7 {[%emt 0:01:50]} 17. Nb5 {[%emt 0:04:34]} Nf8 {[%emt 0:01:57]} 18. h4 {[%emt 0:06:04]} a6 {[%emt 0:00:39]} 19. Nc3 {[%emt 0:00:28]} Nf6 {[%emt 0:02:18]} 20. Re1 {[%emt 0:00:41]} Qb6 {[%emt 0:02:32]} 21. Qd2 {[%emt 0:06:42]} Re8 {[%emt 0:00:52]} 22. Rxe8 Nxe8 {[%emt 0:00:01]} 23. b3 {[%emt 0:12:13]} Qd8 {[%emt 0:01:54]} 24. Ne2 {[%emt 0:02:09]} Nf6 {[%emt 0:02:29]} 25. Ng3 {[%emt 0:01:29]} Ng4 {[%emt 0:00:10]} 26. Qe2 {[%emt 0:06:32]} Qf6 {[%emt 0:02:20]} 27. Nf1 {[%emt 0:03:19]} Ne5 {[%emt 0:07:44]} 28. N1d2 {[%emt 0:02:00]} Nfd7 {[%emt 0:03:31]} 29. g3 {[%emt 0:01:55]} Qd8 {[%emt 0:03:50]} 30. Qd1 {[%emt 0:04:23]} Nf7 {[%emt 0:01:06]} 31. Qc2 {[%emt 0:01:21]} Qf6 {[%emt 0:00:24]} 32. Be3 {[%emt 0:01:05]} Kg8 {[%emt 0:00:35]} 33. Nf1 {[%emt 0:02:11]} g5 {[%emt 0:00:13]} 34. Qc1 {[%emt 0:02:08]} f4 {[%emt 0:03:01]} 35. hxg5 {[%emt 0:02:46]} Nxg5 {[%emt 0:00:04]} 36. Nxg5 {[%emt 0:02:19]} fxe3 {[%emt 0:00:00]} 37. Ne4 {[%emt 0:00:24]} exf2+ {[%emt 0:00:01]} 38. Nxf2 {[%emt 0:00:08]} Ne5 {[%emt 0:00:13]} 39. Qf4 {[%emt 0:01:16]} Qg6 {[%emt 0:03:05]} 40. Qe4 {[%emt 0:03:05]} Qg5 {[%emt 0:00:26]} 41. Kg2 {[%emt 0:01:35]} Qc1 {[%emt 0:01:31]} 42. Qf5 {[%emt 0:02:21]} Qb2 {[%emt 0:00:29]} 43. Qe6+ {[%emt 0:00:06]} Kh7 {[%emt 0:00:49]} 44. Qf5+ {[%emt 0:01:12]} Kg8 {[%emt 0:00:20]} 45. Qe6+ {[%emt 0:00:01]} Kh8 {[%emt 0:00:59]} 46. Qc8+ {[%emt 0:00:06]} Kh7 {[%emt 0:00:04]} 47. Qf5+ {[%emt 0:00:06]} Ng6 {[%emt 0:00:45]} 48. Nh2 {[%emt 0:00:41]} Qe5 {[%emt 0:00:56]} 1/2-1/2

[Event "FISCA Open 2022"]
[Site "Cap Aurora"]
[Date "2022.06.28"]
[Round "8.4"]
[White "Daianu, Cristian-Clement"]
[Black "Puia, Alexia-Teodora"]
[Result "1-0"]
[ECO "B48"]
[WhiteElo "2149"]
[BlackElo "1787"]
[Annotator "NA RC"]
[PlyCount "45"]
[EventDate "2022.06.22"]
[EventType "swiss"]
[EventCountry "ROU"]
[SourceTitle "playchess.com"]
[Source "ChessBase"]
[SourceQuality "1"]
[TimeControl "5400+30"]

1. e4 {[%emt 0:00:15]} c5 {[%emt 0:02:26]} 2. Nf3 {[%emt 0:00:14]} e6 {[%emt 0:00:05]} 3. d4 {[%emt 0:00:09]} cxd4 {[%emt 0:00:05]} 4. Nxd4 {[%emt 0:00:04]} Nc6 {[%emt 0:00:05]} 5. Nc3 {[%emt 0:00:47]} Qc7 {[%emt 0:00:23]} 6. Be3 {[%emt 0:01:36]} a6 {[%emt 0:00:06]} 7. g4 {[%emt 0:02:31]} Bb4 {[%emt 0:04:32]} 8. Nxc6 {[%emt 0:00:19]} Bxc3+ {[%emt 0:03:57]} 9. bxc3 {[%emt 0:00:05]} bxc6 {[%emt 0:00:06]} 10. Bg2 {[%emt 0:01:51]} d5 {[%emt 0:09:39]} 11. c4 $11 {[%emt 0:30:50]} Nf6 {[%emt 0:14:13]} 12. O-O {[%emt 0:09:04]} h5 {[%emt 0:10:55]} 13. cxd5 {[%emt 0:03:49]} exd5 {[%emt 0:00:33]} 14. exd5 {[%emt 0:06:31]} cxd5 {[%emt 0:05:06]} 15. Qd4 {[%emt 0:09:58]} hxg4 {[%emt 0:04:57]} 16. Bf4 {[%emt 0:00:56]} Qc6 {[%emt 0:00:49]} 17. c4 {[%emt 0:04:46]} Be6 {[%emt 0:03:13]} 18. cxd5 {[%emt 0:04:22]} Bxd5 {[%emt 0:00:58]} 19. Rac1 {[%emt 0:08:34]} Qd7 {[%emt 0:05:23]} 20. Bxd5 {[%emt 0:05:20]} Qxd5 {[%emt 0:01:05]} 21. Qb4 {[%emt 0:00:15]} Ne4 {[%emt 0:02:34]} 22. Rfe1 {[%emt 0:00:32]} f5 {[%emt 0:00:28]} 23. Rc7 {[%emt 0:01:12]} 1-0

[Event "FISCA Open 2022"]
[Site "Cap Aurora"]
[Date "2022.06.28"]
[Round "8.6"]
[White "Girmacea, Bogdan"]
[Black "Miron, Iurii"]
[Result "1-0"]
[ECO "A73"]
[WhiteElo "2133"]
[BlackElo "1769"]
[Annotator "NA RC"]
[PlyCount "93"]
[EventDate "2022.06.22"]
[EventType "swiss"]
[EventCountry "ROU"]
[SourceTitle "playchess.com"]
[Source "ChessBase"]
[SourceQuality "1"]
[TimeControl "5400+30"]

1. d4 {[%emt 0:00:03]} Nf6 {[%emt 0:01:32]} 2. Nf3 {[%emt 0:00:21]} e6 {[%emt 0:00:14]} 3. c4 {[%emt 0:00:17]} c5 {[%emt 0:00:07]} 4. d5 {[%emt 0:00:18]} exd5 {[%emt 0:00:02]} 5. cxd5 {[%emt 0:00:12]} d6 {[%emt 0:00:02]} 6. Nc3 {[%emt 0:00:34]} g6 {[%emt 0:00:07]} 7. Nd2 {[%emt 0:00:43]} Bg7 {[%emt 0:00:28]} 8. e4 {[%emt 0:00:09]} O-O {[%emt 0:01:13]} 9. Be2 {[%emt 0:02:46]} Na6 {[%emt 0:19:36]} 10. O-O {[%emt 0:00:24]} Nc7 {[%emt 0:05:11]} 11. a4 {[%emt 0:01:41]} b6 {[%emt 0:00:40]} 12. Re1 {[%emt 0:05:00]} Nfe8 $16 {[%emt 0:16:03]} (12... Re8 $14 {might be stronger.}) 13. Nf1 {[%emt 0:13:31]} f5 {[%emt 0:13:13]} 14. exf5 {[%emt 0:02:58]} Bxf5 {[%emt 0:00:22]} 15. Ng3 {[%emt 0:00:52]} Bd4 {[%emt 0:09:43]} 16. Bf3 {[%emt 0:08:42]} Qh4 {[%emt 0:13:35]} 17. Be3 {[%emt 0:02:50]} Nf6 {[%emt 0:07:30]} 18. Nxf5 {[%emt 0:07:37]} gxf5 {[%emt 0:00:03]} 19. g3 {[%emt 0:00:58]} Qh3 {[%emt 0:00:08]} 20. Bxd4 {[%emt 0:00:17]} cxd4 {[%emt 0:00:04]} 21. Qxd4 {[%emt 0:00:54]} Rf7 {[%emt 0:03:44]} 22. Re2 {[%emt 0:07:03]} Qh6 {[%emt 0:03:36]} 23. Rae1 {[%emt 0:02:30]} Qg7 {[%emt 0:00:45]} 24. Qf4 {[%emt 0:05:15]} Rd8 {[%emt 0:03:14]} 25. Qxf5 {[%emt 0:04:07]} Nd7 {[%emt 0:00:43]} 26. Qh5 {[%emt 0:02:52]} Rdf8 {[%emt 0:00:57]} 27. Bg2 {[%emt 0:01:23]} Rf5 {[%emt 0:00:21]} 28. Qh4 {[%emt 0:01:41]} Ne5 {[%emt 0:00:33]} 29. f4 {[%emt 0:01:51]} Nd3 {[%emt 0:00:37]} 30. Rf1 {[%emt 0:03:48]} R8f6 {[%emt 0:00:34]} 31. Be4 {[%emt 0:05:32]} Rxf4 {[%emt 0:00:30]} 32. Qxh7+ {[%emt 0:06:14]} Qxh7 {[%emt 0:00:31]} 33. Bxh7+ {[%emt 0:00:08]} Kxh7 {[%emt 0:00:12]} 34. gxf4 {[%emt 0:01:08]} Rf7 {[%emt 0:00:40]} 35. Rf3 {[%emt 0:01:36]} Nb4 {[%emt 0:00:37]} 36. Rg2 {[%emt 0:02:30]} Rg7 {[%emt 0:00:19]} 37. Rh3+ {[%emt 0:02:38]} Kg8 {[%emt 0:00:02]} 38. Rh6 {[%emt 0:00:43]} Ncxd5 {[%emt 0:01:04]} 39. Nxd5 {[%emt 0:00:20]} Nxd5 {[%emt 0:00:14]} 40. Rxg7+ {[%emt 0:00:22]} Kxg7 {[%emt 0:00:08]} 41. Rxd6 {[%emt 0:00:10]} Nxf4 {[%emt 0:00:02]} 42. Rd7+ {[%emt 0:00:09]} Kf6 {[%emt 0:00:09]} 43. Rxa7 {[%emt 0:00:07]} Ke5 {[%emt 0:00:03]} 44. Ra6 {[%emt 0:00:15]} Nd5 {[%emt 0:00:10]} 45. a5 {[%emt 0:00:35]} b5 {[%emt 0:01:06]} 46. Rh6 {[%emt 0:00:47]} Kd4 {[%emt 0:00:20]} 47. Rd6 {[%emt 0:00:29]} 1-0

[Event "FISCA Open 2022"]
[Site "Cap Aurora"]
[Date "2022.06.28"]
[Round "8.7"]
[White "Capragiu, Matei-Stefan"]
[Black "Mintau, Andrei-Catalin"]
[Result "1/2-1/2"]
[ECO "E47"]
[WhiteElo "1925"]
[BlackElo "2130"]
[Annotator "NA RC"]
[PlyCount "118"]
[EventDate "2022.06.22"]
[EventType "swiss"]
[EventCountry "ROU"]
[SourceTitle "playchess.com"]
[Source "ChessBase"]
[SourceQuality "1"]
[TimeControl "5400+30"]

1. d4 {[%emt 0:01:24]} Nf6 {[%emt 0:00:04]} 2. c4 {[%emt 0:00:03]} e6 {[%emt 0:00:02]} 3. Nc3 {[%emt 0:00:37]} Bb4 {[%emt 0:01:15]} 4. e3 {[%emt 0:00:26]} O-O {[%emt 0:00:17]} 5. Bd3 {[%emt 0:00:07]} b6 {[%emt 0:01:08]} 6. Nge2 {[%emt 0:00:45]} Bb7 {[%emt 0:01:26]} 7. O-O {[%emt 0:00:36]} d5 {[%emt 0:05:19]} 8. a3 {[%emt 0:00:31]} Bd6 {[%emt 0:00:21]} 9. Ng3 {[%emt 0:04:09]} c5 {[%emt 0:12:30]} 10. cxd5 {[%emt 0:01:41]} cxd4 {[%emt 0:00:08]} 11. exd4 {[%emt 0:00:37]} Nxd5 {[%emt 0:00:29]} 12. Qh5 {[%emt 0:08:47]} g6 {[%emt 0:23:45]} 13. Qh6 {[%emt 0:03:02]} f5 {[%emt 0:00:33]} 14. Bg5 {[%emt 0:10:39]} Be7 {[%emt 0:07:41]} 15. Bxe7 {[%emt 0:04:49]} Qxe7 {[%emt 0:00:13]} 16. Bc4 {[%emt 0:01:55]} Nd7 {[%emt 0:14:33]} 17. Rfe1 {[%emt 0:03:29]} N7f6 {[%emt 0:03:35]} 18. Qg5 {[%emt 0:01:32]} Qd7 {[%emt 0:04:36]} 19. Re5 {[%emt 0:27:12]} Kh8 {[%emt 0:06:45]} 20. Bb5 {[%emt 0:08:50]} Bc6 {[%emt 0:01:17]} 21. Bxc6 {[%emt 0:01:44]} Qxc6 {[%emt 0:00:01]} 22. Nxd5 {[%emt 0:00:16]} Nxd5 {[%emt 0:04:15]} 23. Rc1 {[%emt 0:01:02]} Qd7 {[%emt 0:00:35]} 24. Rce1 {[%emt 0:00:43]} Rae8 {[%emt 0:01:40]} 25. h4 {[%emt 0:00:36]} Nc7 {[%emt 0:02:27]} 26. h5 {[%emt 0:00:59]} Qd8 {[%emt 0:00:25]} 27. Qc1 {[%emt 0:01:54]} g5 {[%emt 0:00:40]} 28. Qc6 {[%emt 0:00:47]} Rf7 {[%emt 0:01:12]} 29. h6 {[%emt 0:02:46]} Ref8 {[%emt 0:02:39]} 30. Nh5 {[%emt 0:01:17]} Qxd4 {[%emt 0:01:46]} 31. Ng7 {[%emt 0:01:37]} g4 {[%emt 0:00:08]} 32. Qc3 {[%emt 0:04:48]} Qxc3 {[%emt 0:02:00]} 33. bxc3 {[%emt 0:00:02]} Rf6 {[%emt 0:00:10]} 34. Nxe6 {[%emt 0:00:20]} Nxe6 {[%emt 0:00:03]} 35. Rxe6 {[%emt 0:00:06]} Kg8 {[%emt 0:00:26]} 36. Re7 {[%emt 0:00:49]} Rxh6 {[%emt 0:01:24]} 37. Rxa7 {[%emt 0:00:14]} Rf7 {[%emt 0:00:26]} 38. Ree7 {[%emt 0:03:50]} Rxe7 {[%emt 0:01:03]} 39. Rxe7 {[%emt 0:00:02]} Rc6 {[%emt 0:00:04]} 40. Re5 {[%emt 0:01:37]} Rf6 {[%emt 0:00:36]} 41. f4 {[%emt 0:01:09]} gxf3 {[%emt 0:01:03]} 42. gxf3 {[%emt 0:00:05]} Kg7 {[%emt 0:00:02]} 43. c4 {[%emt 0:00:25]} Kg6 {[%emt 0:00:12]} 44. Kg2 {[%emt 0:01:11]} Rc6 {[%emt 0:00:31]} 45. Kg3 {[%emt 0:01:40]} Rxc4 {[%emt 0:00:18]} 46. Re6+ {[%emt 0:00:13]} Kg5 {[%emt 0:00:04]} 47. Rxb6 {[%emt 0:00:16]} Rc3 {[%emt 0:00:34]} 48. Rb8 {[%emt 0:01:06]} f4+ {[%emt 0:00:38]} 49. Kg2 {[%emt 0:00:23]} Kh4 {[%emt 0:00:56]} 50. Rg8 {[%emt 0:00:26]} h5 {[%emt 0:00:05]} 51. a4 {[%emt 0:00:18]} Ra3 {[%emt 0:00:01]} 52. a5 {[%emt 0:01:35]} Rxa5 {[%emt 0:00:04]} 53. Rg7 {[%emt 0:00:24]} Ra2+ {[%emt 0:02:21]} 54. Kf1 {[%emt 0:00:40]} Kh3 {[%emt 0:01:24]} 55. Kg1 {[%emt 0:00:28]} h4 {[%emt 0:01:02]} 56. Rg4 {[%emt 0:00:32]} Ra1+ {[%emt 0:00:30]} 57. Kf2 {[%emt 0:00:07]} Ra4 {[%emt 0:00:05]} 58. Kg1 {[%emt 0:00:31]} Rb4 {[%emt 0:00:47]} 59. Kf2 {[%emt 0:00:30]} Ra4 {[%emt 0:00:43]} 1/2-1/2

[Event "FISCA Open 2022"]
[Site "Cap Aurora"]
[Date "2022.06.28"]
[Round "8.9"]
[White "Stegaroiu, Marcel-Florian"]
[Black "Iordache, Alexia-Andreea"]
[Result "0-1"]
[ECO "A21"]
[WhiteElo "1917"]
[BlackElo "1658"]
[Annotator "NA RC"]
[PlyCount "104"]
[EventDate "2022.06.22"]
[EventType "swiss"]
[EventCountry "ROU"]
[SourceTitle "playchess.com"]
[Source "ChessBase"]
[SourceQuality "1"]
[TimeControl "5400+30"]

1. c4 {[%emt 0:00:03]} g6 {[%emt 0:00:05]} 2. Nc3 {[%emt 0:00:04]} Bg7 {[%emt 0:00:04]} 3. Nf3 {[%emt 0:00:08]} d6 {[%emt 0:00:10]} 4. g3 {[%emt 0:00:08]} e5 {[%emt 0:00:22]} 5. Bg2 {[%emt 0:00:14]} f5 {[%emt 0:01:08]} 6. d3 {[%emt 0:00:09]} Nf6 {[%emt 0:00:54]} 7. O-O {[%emt 0:00:12]} O-O {[%emt 0:00:45]} 8. Rb1 {[%emt 0:01:08]} h6 {[%emt 0:06:26]} 9. h4 {[%emt 0:01:28]} Nbd7 {[%emt 0:06:00]} 10. b4 {[%emt 0:02:43]} Nh5 {[%emt 0:11:12]} 11. e4 {[%emt 0:05:00]} f4 {[%emt 0:06:42]} 12. gxf4 {[%emt 0:05:12]} Nxf4 {[%emt 0:01:57]} 13. Bxf4 $17 {[%emt 0:00:21]} exf4 {[%emt 0:02:47]} 14. d4 {[%emt 0:03:13]} g5 {[%emt 0:07:13]} 15. hxg5 {[%emt 0:00:09]} hxg5 {[%emt 0:00:08]} 16. Nh2 {[%emt 0:00:07]} Nf6 {[%emt 0:06:22]} 17. f3 {[%emt 0:00:32]} Nh5 {[%emt 0:02:53]} 18. Rf2 {[%emt 0:02:40]} c5 {[%emt 0:07:36]} 19. Ne2 {[%emt 0:06:21]} cxd4 {[%emt 0:00:48]} 20. Qd3 {[%emt 0:02:02]} Qb6 {[%emt 0:04:00]} 21. a4 {[%emt 0:06:47]} a5 {[%emt 0:07:32]} 22. bxa5 {[%emt 0:04:01]} Qxa5 {[%emt 0:00:16]} 23. Rb5 {[%emt 0:00:08]} Qd8 {[%emt 0:04:08]} 24. Nxd4 {[%emt 0:02:55]} Rxa4 {[%emt 0:01:40]} 25. Rd5 {[%emt 0:10:41]} Ra1+ {[%emt 0:03:16]} 26. Nf1 {[%emt 0:02:41]} Be5 {[%emt 0:01:40]} 27. Nc2 {[%emt 0:07:37]} Ra8 {[%emt 0:00:50]} 28. Rd2 {[%emt 0:00:34]} Qf6 {[%emt 0:02:34]} 29. Nh2 {[%emt 0:05:59]} Ng3 {[%emt 0:02:22]} 30. c5 {[%emt 0:03:49]} Be6 {[%emt 0:01:28]} 31. cxd6 {[%emt 0:00:19]} Rad8 {[%emt 0:03:23]} 32. Qb5 {[%emt 0:01:28]} Bxd5 {[%emt 0:01:05]} 33. Qxd5+ {[%emt 0:00:13]} Kh7 {[%emt 0:04:24]} 34. Ng4 {[%emt 0:00:35]} Qxd6 {[%emt 0:00:14]} 35. Kh2 {[%emt 0:04:46]} Qxd5 {[%emt 0:00:30]} 36. exd5 {[%emt 0:00:17]} Bc7 {[%emt 0:01:06]} 37. Na3 {[%emt 0:01:01]} Kh8 {[%emt 0:01:46]} 38. Nb5 {[%emt 0:01:20]} Bd6 {[%emt 0:00:41]} 39. Ra2 {[%emt 0:05:30]} Bc5 {[%emt 0:01:35]} 40. Rc2 {[%emt 0:01:30]} Rxd5 {[%emt 0:01:11]} 41. Nc7 {[%emt 0:00:10]} Rdf5 {[%emt 0:00:27]} 42. Rd2 {[%emt 0:05:15]} R5f7 {[%emt 0:00:46]} 43. Rd5 {[%emt 0:02:15]} Rxc7 {[%emt 0:00:18]} 44. Rxg5 {[%emt 0:00:15]} Rh7+ {[%emt 0:00:25]} 45. Bh3 {[%emt 0:00:07]} Be7 {[%emt 0:00:41]} 46. Rb5 {[%emt 0:00:25]} Nf1+ {[%emt 0:00:09]} 47. Kg2 {[%emt 0:00:11]} Ne3+ {[%emt 0:00:05]} 48. Nxe3 {[%emt 0:00:08]} fxe3 {[%emt 0:00:05]} 49. Bg4 {[%emt 0:00:23]} Bd6 {[%emt 0:00:23]} 50. Rb3 {[%emt 0:01:25]} Rh2+ {[%emt 0:00:09]} 51. Kg1 {[%emt 0:00:07]} e2 {[%emt 0:00:24]} 52. Re3 {[%emt 0:00:08]} Bc5 {[%emt 0:00:16]} 0-1

[Event "FISCA Open 2022"]
[Site "Cap Aurora"]
[Date "2022.06.28"]
[Round "8.10"]
[White "Ionica, Robert"]
[Black "Togan, Teodor-Bogdan"]
[Result "1-0"]
[ECO "D02"]
[WhiteElo "1731"]
[BlackElo "1507"]
[Annotator "NA RC"]
[PlyCount "93"]
[EventDate "2022.06.22"]
[EventType "swiss"]
[EventCountry "ROU"]
[SourceTitle "playchess.com"]
[Source "ChessBase"]
[SourceQuality "1"]
[TimeControl "5400+30"]

1. d4 {[%emt 0:00:15]} d5 {[%emt 0:10:11]} 2. Bf4 {[%emt 0:00:08]} Nf6 {[%emt 0:00:19]} 3. Nf3 {[%emt 0:00:08]} e6 {[%emt 0:00:13]} 4. e3 {[%emt 0:00:15]} Be7 {[%emt 0:01:10]} 5. Bd3 {[%emt 0:00:26]} O-O {[%emt 0:00:57]} 6. Nbd2 {[%emt 0:00:21]} b6 {[%emt 0:05:05]} 7. O-O {[%emt 0:01:08]} Bb7 {[%emt 0:00:26]} 8. Ne5 {[%emt 0:00:29]} Ne4 {[%emt 0:01:16]} 9. h3 {[%emt 0:09:24]} Nd7 {[%emt 0:03:29]} 10. c3 {[%emt 0:00:40]} Nxd2 {[%emt 0:08:00]} 11. Qxd2 {[%emt 0:01:26]} f6 {[%emt 0:01:48]} 12. Nxd7 {[%emt 0:05:11]} Qxd7 {[%emt 0:00:05]} 13. Qc2 {[%emt 0:00:28]} f5 {[%emt 0:00:55]} 14. Be5 {[%emt 0:02:20]} Bd6 {[%emt 0:07:44]} 15. f4 {[%emt 0:01:12]} Be7 {[%emt 0:00:34]} 16. Qe2 {[%emt 0:00:40]} c5 {[%emt 0:01:44]} 17. g4 {[%emt 0:06:04]} c4 {[%emt 0:02:55]} 18. Bc2 {[%emt 0:00:37]} Qe8 {[%emt 0:05:30]} 19. Rf2 {[%emt 0:00:45]} Bc6 {[%emt 0:12:13]} 20. Raf1 {[%emt 0:07:29]} Bd7 {[%emt 0:04:18]} 21. Rg2 {[%emt 0:00:30]} Bf6 {[%emt 0:05:32]} 22. Bd6 {[%emt 0:02:40]} Be7 {[%emt 0:01:19]} 23. Be5 {[%emt 0:00:05]} Bf6 {[%emt 0:00:06]} 24. gxf5 {[%emt 0:01:59]} exf5 {[%emt 0:00:07]} 25. Qf3 {[%emt 0:00:09]} Be6 {[%emt 0:02:15]} 26. Bd6 {[%emt 0:02:09]} Be7 {[%emt 0:01:33]} 27. Qg3 {[%emt 0:00:42]} Qf7 {[%emt 0:01:34]} 28. Be5 {[%emt 0:00:06]} Bf6 {[%emt 0:00:21]} 29. Kh2 {[%emt 0:00:39]} a5 {[%emt 0:04:27]} 30. Ba4 {[%emt 0:01:17]} Bd7 {[%emt 0:01:10]} 31. Bxf6 {[%emt 0:02:53]} Qxf6 {[%emt 0:04:35]} 32. Bxd7 {[%emt 0:00:10]} Rad8 {[%emt 0:00:02]} 33. Bxf5 {[%emt 0:01:08]} Rf7 {[%emt 0:00:37]} 34. Bc2 {[%emt 0:00:40]} Re8 {[%emt 0:00:52]} 35. Re2 {[%emt 0:01:13]} Rfe7 {[%emt 0:00:44]} 36. Rfe1 {[%emt 0:00:29]} b5 {[%emt 0:01:12]} 37. Qf3 {[%emt 0:02:14]} Qd6 {[%emt 0:00:47]} 38. e4 {[%emt 0:00:11]} dxe4 {[%emt 0:00:28]} 39. Rxe4 {[%emt 0:01:30]} Rxe4 {[%emt 0:00:29]} 40. Rxe4 {[%emt 0:00:16]} Rxe4 {[%emt 0:01:17]} 41. Qxe4 {[%emt 0:00:06]} g6 {[%emt 0:00:07]} 42. Qe5 {[%emt 0:00:13]} Qc6 {[%emt 0:01:07]} 43. Be4 {[%emt 0:00:06]} Qb6 {[%emt 0:00:34]} 44. Qe7 {[%emt 0:01:22]} h5 {[%emt 0:01:48]} 45. Bd5+ {[%emt 0:00:08]} Kh8 {[%emt 0:00:09]} 46. Qf8+ {[%emt 0:00:07]} Kh7 {[%emt 0:00:26]} 47. Qg8+ {[%emt 0:00:07]} 1-0